bitfinex/quotes_SOLUSD_20260124
["timestamp","ask_amount","ask_price","bid_price","bid_amount"]
[1769256384419,87.9889784,127.21,127.18,2.11816478]
[1769256384913,3.26258868,127.2,127.18,2.11816478]
[1769256385114,3.26258868,127.2,127.16,7.8641055]
[1769256385309,3.26258868,127.2,127.17,2.11816478]
[1769256387006,3.26258868,127.2,127.17,2.11838698]
[1769256391739,87.9889784,127.21,127.18,2.11838698]
[1769256395035,3.26258868,127.2,127.18,2.11838698]
[1769256395530,87.9889784,127.21,127.18,2.11838698]
[1769256395737,3.26258868,127.2,127.18,2.11838698]
[1769256396534,87.9889784,127.21,127.18,2.11838698]
[1769256396833,3.26258868,127.2,127.18,2.11838698]
[1769256398018,3.26258868,127.2,127.17,2.11838698]
[1769256404739,87.9889784,127.21,127.18,2.11838698]
[1769256405150,3.26258868,127.2,127.18,2.11838698]
[1769256406446,87.9889784,127.21,127.18,2.11838698]
[1769256407653,3.26258868,127.21,127.18,2.11838698]
[1769256408355,3.26258868,127.23,127.19,2.11838698]
[1769256408533,3.26258868,127.23,127.2,2.11838698]
[1769256427879,3.26258868,127.23,127.21,2.11838698]
[1769256430383,3.26258868,127.23,127.18,7.86255397]
[1769256430573,3.26258868,127.23,127.21,2.11838698]
[1769256438074,3.26258868,127.23,127.2,2.11838698]
[1769256448970,3.26258868,127.23,127.2,2.11734462]
[1769256472980,3.26258868,127.23,127.21,2.11734462]
[1769256474004,3.26258868,127.23,127.21,1.61734462]
[1769256474986,2.11734462,127.28,127.22,4.37626312]
[1769256475185,2.11734462,127.28,127.23,4.37626312]
[1769256475795,31.45070167,127.3,127.24,2.11734462]
[1769256475994,105.41734462,127.3,127.25,2.11734462]
[1769256476908,105.41734462,127.3,127.24,2.26367557]
[1769256477119,2.78282124,127.28,127.25,2.11734462]
[1769256479485,2.78282124,127.28,127.24,4.38102019]
[1769256508930,2.78282124,127.28,127.24,4.37967561]
[1769256539647,2.78282124,127.28,127.25,1.59419698]
[1769256542528,2.28262175,127.29,127.26,3.68051747]
[1769256542740,2.28262175,127.29,127.27,2.11600004]
[1769256543140,2.28262175,127.29,127.26,3.68051747]
[1769256554080,105.52744274,127.3,127.27,1.47700611]
[1769256555458,2.22744274,127.29,127.27,1.47700611]
[1769256561379,2.22744274,127.29,127.26,3.55105369]
[1769256562652,105.52744274,127.3,127.27,1.42933261]
[1769256563879,103.3,127.3,127.27,1.42933261]
[1769256564080,2.22744274,127.29,127.27,1.42933261]
[1769256564577,103.3,127.3,127.27,3.54533265]
[1769256564578,2.22744274,127.3,127.27,3.54533265]
[1769256564783,2.42744274,127.31,127.28,1.41808691]
[1769256564957,2.42744274,127.31,127.27,3.52856079]
[1769256569381,2.42744274,127.31,127.28,1.3910836]
[1769256570487,2.42744274,127.31,127.28,3.50708364]
[1769256570988,2.42744274,127.31,127.28,3.50595422]
[1769256571482,2.42744274,127.31,127.28,1.3910836]
[1769256573681,2.42744274,127.31,127.27,1.36559587]
[1769256573881,2.42744274,127.31,127.27,3.48046649]
[1769256577895,2.42744274,127.31,127.27,3.48046649]
[1769256581074,2.24021001,127.3,127.27,3.48046649]
[1769256589607,2.24021001,127.3,127.28,1.29325918]
[1769256590109,2.24021001,127.3,127.27,3.40403741]
[1769256600526,2.24021001,127.3,127.27,2.11487062]
[1769256600710,2.24021001,127.3,127.26,3.36561172]
[1769256603323,2.24021001,127.3,127.24,19.64752983]
[1769256603324,2.10060952,127.27,127.24,1.23657147]
[1769256604541,2.10060952,127.27,127.24,9.09573146]
[1769256605518,2.10060952,127.27,127.24,11.21060208]
[1769256607656,2.10060952,127.27,127.24,9.09573146]
[1769256607849,2.10060952,127.27,127.24,11.21060208]
[1769256608144,2.10060952,127.27,127.25,3.33462646]
[1769256608850,2.10060952,127.27,127.25,1.21975584]
[1769256610827,2.10060952,127.27,127.25,9.07819773]
[1769256619728,2.10060952,127.27,127.25,1.21975584]
[1769256622956,2.10060952,127.27,127.24,11.14573662]
[1769256632879,2.10060952,127.27,127.24,11.14692534]
[1769256654663,2.10060952,127.27,127.24,9.030866]
[1769256654860,2.10060952,127.27,127.24,11.14692534]
[1769256660198,2.10060952,127.27,127.23,8.94801355]
[1769256663201,2.10060952,127.27,127.23,11.06407289]
[1769256664286,2.11605934,127.27,127.23,11.06407289]
[1769256664473,2.16416057,127.26,127.23,11.06407289]
[1769256667070,2.16416057,127.26,127.23,8.94801355]
[1769256667685,2.16416057,127.26,127.23,1.08850876]
[1769256669586,2.16416057,127.26,127.23,8.94826106]
[1769256673365,2.05956841,127.26,127.23,8.94826106]
[1769256675600,2.14981594,127.25,127.21,18.38607916]
[1769256675778,2.14981594,127.25,127.21,28.36280094]
[1769256676280,2.14981594,127.25,127.22,7.86033438]
[1769256677495,2.14981594,127.25,127.22,9.02356945]
[1769256685997,2.14981594,127.25,127.22,7.86033438]
[1769256686697,2.14981594,127.25,127.22,9.02059587]
[1769256689598,2.14981594,127.25,127.22,7.86033438]
[1769256696698,0.06461724,127.25,127.22,7.86033438]
[1769256696905,2.11698825,127.26,127.22,9.86599777]
[1769256698802,2.1251632,127.25,127.22,9.86599777]
[1769256699005,2.1251632,127.25,127.22,2.00566339]
[1769256703701,2.1251632,127.25,127.2,2.00566339]
[1769256704008,2.1251632,127.23,127.2,2.00566339]
[1769256704303,2.1251632,127.23,127.2,4.12265164]
[1769256712707,2.1251632,127.24,127.21,2.00566339]
[1769256712914,2.1251632,127.24,127.22,2.00566339]
[1769256741038,2.1251632,127.24,127.21,12.13252221]
[1769256752345,2.1251632,127.24,127.21,10.01553396]
[1769256756146,2.1251632,127.24,127.2,9.97228009]
[1769256756342,2.1251632,127.24,127.2,2.11091988]
[1769256757023,2.11721958,127.23,127.19,2.11091988]
[1769256757221,2.09817167,127.22,127.19,2.11091988]
[1769256760649,2.09817167,127.21,127.18,2.11091988]
[1769256762931,2.09817167,127.2,127.17,17.24]
[1769256763451,2.09817167,127.2,127.17,19.35091988]
[1769256764144,2.09817167,127.2,127.17,21.46813946]
[1769256766050,2.09817167,127.2,127.18,2.11091988]
[1769256766548,2.09817167,127.2,127.17,21.46813946]
[1769256767147,2.09817167,127.2,127.17,19.35091988]
[1769256767356,2.09817167,127.19,127.17,17.24]
[1769256768261,2.09817167,127.19,127.15,12.29267534]
[1769256768553,2.09817167,127.19,127.16,2.11091988]
[1769256769059,4.21539125,127.19,127.16,2.11091988]
[1769256769251,2.09817167,127.18,127.15,2.31091988]
[1769256770669,2.09817167,127.18,127.15,0.2]
[1769256771951,2.09817167,127.18,127.15,2.31091988]
[1769256775469,2.09817167,127.18,127.15,0.2]
[1769256775762,2.09817167,127.18,127.15,2.31091988]
[1769256776466,2.09817167,127.18,127.15,0.2]
[1769256776774,2.09817167,127.17,127.15,0.2]
[1769256782865,4.21539125,127.17,127.15,0.2]
[1769256783166,2.03436392,127.16,127.15,0.2]
[1769256786797,2.03436392,127.16,127.14,0.1]
[1769256790998,4.1515835,127.16,127.14,0.1]
[1769256793988,2.03436392,127.16,127.14,0.1]
[1769256854773,2.03436392,127.16,127.14,1.9386924]
[1769256862880,1.80496466,127.18,127.14,1.9386924]
[1769256863265,2.12004483,127.18,127.14,1.9386924]
[1769256863472,1.80496466,127.17,127.14,1.9386924]
[1769256872589,3.92500949,127.17,127.14,1.9386924]
[1769256874892,3.92477434,127.17,127.14,1.9386924]
[1769256880992,1.80496466,127.17,127.14,1.9386924]
[1769256889604,3.92477434,127.17,127.14,1.9386924]
[1769256892625,1.80496466,127.17,127.14,1.9386924]
[1769256895606,3.92477434,127.17,127.14,1.9386924]
[1769256901631,1.80496466,127.17,127.14,1.9386924]
[1769256903327,3.8542493,127.18,127.14,1.9386924]
[1769256903835,1.73443962,127.17,127.14,1.9386924]
[1769256910538,3.8542493,127.17,127.14,1.9386924]
[1769256912847,1.73443962,127.17,127.14,1.9386924]
[1769256953288,1.72129489,127.18,127.14,1.9386924]
[1769256958985,2.11972151,127.18,127.14,1.9386924]
[1769256959286,1.72129489,127.17,127.14,1.9386924]
[1769256960390,3.8410164,127.17,127.14,1.9386924]
[1769256960570,1.72129489,127.16,127.14,1.9386924]
[1769256961594,1.72129489,127.15,127.13,0.1]
[1769256962593,1.60318485,127.14,127.13,0.1]
[1769256964091,2.11972151,127.15,127.13,0.1]
[1769256964271,1.60318485,127.15,127.13,0.1]
[1769256968894,3.72290636,127.15,127.13,0.1]
[1769256972602,1.65978008,127.14,127.13,0.1]
[1769256973101,2.11972151,127.15,127.13,0.1]
[1769256973395,1.65978008,127.14,127.13,0.1]
[1769256974102,2.11972151,127.15,127.13,0.1]
[1769256974401,3.77950159,127.15,127.13,0.1]
[1769256978904,1.65978008,127.14,127.12,0.1]
[1769256992516,1.62454342,127.13,127.12,0.1]
[1769256995417,1.62454342,127.14,127.12,1.64110812]
[1769257007925,104.92454342,127.16,127.12,1.64110812]
[1769257008130,103.3,127.16,127.13,1.54110812]
[1769257008333,103.3,127.16,127.14,1.54110812]
[1769257008733,104.92454342,127.16,127.14,1.54110812]
[1769257011535,1.62454342,127.16,127.14,1.54110812]
[1769257020248,1.62454342,127.16,127.13,16.17110919]
[1769257021446,1.62454342,127.16,127.14,1.54110812]
[1769257021642,1.62454342,127.17,127.14,1.54110812]
[1769257022252,1.62454342,127.17,127.13,16.17110919]
[1769257031461,1.58070466,127.17,127.13,16.17110919]
[1769257039066,1.58070466,127.17,127.13,3.66184356]
[1769257041372,1.58070466,127.17,127.14,1.62605763]
[1769257049482,1.58070466,127.17,127.15,1.62605763]
[1769257049773,1.58070466,127.17,127.14,3.74679307]
[1769257049980,1.58070466,127.17,127.14,1.62605763]
[1769257061263,1.59369771,127.18,127.14,1.62605763]
[1769257061562,1.59369771,127.18,127.15,1.52578729]
[1769257099412,1.59369771,127.18,127.15,25.13389273]
[1769257100513,1.59369771,127.18,127.15,27.25352659]
[1769257100713,1.59369771,127.18,127.16,1.56493879]
[1769257108423,1.59369771,127.18,127.15,25.17304423]
[1769257121035,1.59369771,127.18,127.15,23.60810544]
[1769257121246,1.59369771,127.18,127.16,1.58295962]
[1769257124818,1.59369771,127.18,127.15,25.19106506]
[1769257127841,1.60627688,127.19,127.16,1.58295962]
[1769257128221,1.60627688,127.19,127.16,25.1892074]
[1769257128419,1.60627688,127.19,127.16,27.30854472]
[1769257129241,1.60627688,127.19,127.16,25.1892074]
[1769257132035,1.60627688,127.19,127.17,1.58295962]
[1769257134423,104.90627688,127.2,127.17,1.58295962]
[1769257134828,1.60627688,127.2,127.18,1.58295962]
[1769257135939,1.60627688,127.21,127.18,1.58295962]
[1769257139140,1.60627688,127.21,127.18,25.18549295]
[1769257141053,1.60627688,127.21,127.18,1.58295962]
[1769257143142,3.7256142,127.21,127.18,1.58295962]
[1769257143526,1.60627688,127.21,127.18,25.18549295]
[1769257143948,3.7256142,127.21,127.18,25.18549295]
[1769257145647,1.60627688,127.21,127.18,25.18549295]
[1769257152054,1.60541705,127.2,127.18,1.58295962]
[1769257166874,1.60541705,127.2,127.17,25.14606209]
[1769257170376,1.60541705,127.2,127.18,1.54167168]
[1769257173370,1.60541705,127.2,127.17,23.60439041]
[1769257173591,1.60541705,127.2,127.17,25.23755708]
[1769257182872,1.60541705,127.2,127.17,27.35602586]
[1769257188908,1.60541705,127.2,127.17,3.75163545]
[1769257189209,1.60541705,127.2,127.18,23.60439041]
[1769257189908,1.60541705,127.2,127.18,25.23755708]
[1769257192011,1.60541705,127.2,127.18,1.63316667]
[1769257192909,1.60541705,127.2,127.18,25.23755708]
[1769257193209,1.60541705,127.2,127.18,1.63316667]
[1769257194619,1.60541705,127.2,127.18,25.23755708]
[1769257195413,1.60541705,127.2,127.18,1.63316667]
[1769257199812,1.60541705,127.2,127.17,23.60439041]
[1769257200007,1.60541705,127.2,127.17,25.23755708]
[1769257202794,1.60541705,127.2,127.17,23.60439041]
[1769257205614,1.60541705,127.2,127.17,25.21823857]
[1769257213031,1.60541705,127.2,127.17,1.61384816]
[1769257213327,1.60541705,127.2,127.18,23.60439041]
[1769257217327,1.61068442,127.21,127.18,23.60439041]
[1769257217534,1.61068442,127.21,127.18,25.11777106]
[1769257221045,1.61068442,127.21,127.18,23.60439041]
[1769257222039,1.61068442,127.21,127.18,25.11777106]
[1769257226448,1.61068442,127.21,127.19,1.51338065]
[1769257226832,1.61068442,127.21,127.19,25.11591398]
[1769257227842,1.61068442,127.22,127.19,23.60253333]
[1769257228026,1.61068442,127.22,127.2,1.51338065]
[1769257228956,1.61068442,127.22,127.2,23.60253333]
[1769257229940,1.61068442,127.22,127.2,25.11591398]
[1769257240931,1.61068442,127.22,127.2,23.60253333]
[1769257242937,1.61068442,127.22,127.2,25.24338061]
[1769257247259,1.61068442,127.22,127.2,1.64084728]
[1769257251738,104.82182252,127.23,127.2,1.64084728]
[1769257253861,1.52182252,127.22,127.2,1.64084728]
[1769257287179,104.78993867,127.23,127.2,1.64084728]
[1769257287378,104.78993867,127.23,127.2,3.75860209]
[1769257287556,104.78993867,127.23,127.2,27.35742214]
[1769257289092,104.78993867,127.23,127.2,25.23966733]
[1769257292791,1.48993867,127.23,127.2,25.23966733]
[1769257293797,1.53755324,127.22,127.2,1.64084728]
[1769257294166,3.65530805,127.22,127.19,25.09950355]
[1769257298595,1.53755324,127.22,127.19,25.09950355]
[1769257303292,1.53755324,127.22,127.2,1.498827]
[1769257306203,120.55625997,127.26,127.2,1.498827]
[1769257306402,2.11803018,127.23,127.2,1.498827]
[1769257308202,3.65558342,127.23,127.2,1.498827]
[1769257314807,3.52053448,127.23,127.2,1.498827]
[1769257327814,1.53755324,127.23,127.2,1.498827]
[1769257331919,3.65558342,127.23,127.2,1.498827]
[1769257333420,1.6213312,127.22,127.2,1.498827]
[1769257378159,1.58618002,127.23,127.2,1.498827]
[1769257390962,3.70411009,127.23,127.2,1.498827]
[1769257393367,2.11793007,127.23,127.2,1.498827]
[1769257393562,3.70572169,127.24,127.2,1.498827]
[1769257394869,1.58779162,127.24,127.2,1.498827]
[1769257395060,3.70572169,127.24,127.2,25.09764705]
[1769257395268,3.70572169,127.24,127.21,1.73176057]
[1769257400484,3.70572169,127.24,127.21,25.33058062]
[1769257419975,98.60625693,127.25,127.22,1.62076095]
[1769257420392,98.60625693,127.25,127.22,25.2177248]
[1769257420995,100.724187,127.25,127.22,25.2177248]
[1769257421473,3.76860358,127.25,127.22,25.2177248]
[1769257422899,3.76795847,127.25,127.22,25.2177248]
[1769257438007,1.65067351,127.25,127.22,25.2177248]
[1769257451621,1.65067351,127.25,127.23,1.68430188]
[1769257452520,1.65067351,127.25,127.23,4.83056372]
[1769257466747,2.11728496,127.26,127.25,88.04474855]
[1769257467120,2.11728496,127.26,127.24,1.68430188]
[1769257468755,3.03526946,127.26,127.23,4.83056372]
[1769257472056,2.11728496,127.25,127.23,4.83056372]
[1769257472654,0.93778745,127.24,127.23,3.14626184]
[1769257472863,3.05507241,127.24,127.21,1.67041141]
[1769257473033,3.05507241,127.24,127.21,9.53251796]
[1769257473552,3.05507241,127.24,127.22,1.67041141]
[1769257476163,2.11728496,127.24,127.22,1.67041141]
[1769257477763,2.11728496,127.23,127.22,1.67041141]
[1769257479942,2.11728496,127.24,127.22,1.67041141]
[1769257482961,2.11774769,127.24,127.22,1.67041141]
[1769257493682,3.12731717,127.24,127.21,9.53251796]
[1769257493876,3.12731717,127.24,127.21,1.67041141]
[1769257495676,1.00956948,127.24,127.21,1.67041141]
[1769257495976,3.12731717,127.24,127.21,1.67041141]
[1769257497377,2.11774769,127.24,127.21,1.67041141]
[1769257497578,3.1391348,127.24,127.21,1.67041141]
[1769257506888,2.11774769,127.24,127.21,1.67041141]
[1769257510685,3.1789313,127.24,127.21,1.67041141]
[1769257521198,2.11774769,127.23,127.21,1.67041141]
[1769257521498,3.1789313,127.24,127.21,1.67041141]
[1769257542916,3.17903178,127.24,127.21,1.67041141]
[1769257550096,1.13893259,127.23,127.2,23.57287204]
[1769257550423,3.25678076,127.23,127.2,1.79846762]
[1769257552715,1.13893259,127.23,127.2,1.79846762]
[1769257552922,3.25678076,127.23,127.2,1.79846762]
[1769257555007,120.52845546,127.24,127.2,1.79846762]
[1769257555213,2.11784817,127.23,127.2,1.79846762]
[1769257555416,2.11784817,127.23,127.21,1.79846762]
[1769257565540,100.15806992,127.24,127.21,1.79846762]
[1769257566940,3.07503772,127.23,127.2,25.25522378]
[1769257567142,3.07503772,127.23,127.2,1.68235174]
[1769257582957,2.11784817,127.23,127.2,1.68235174]
[1769257583968,97.77256176,127.24,127.2,1.68235174]
[1769257584254,2.11784817,127.23,127.2,1.68235174]
[1769257584455,99.89040993,127.24,127.2,1.68235174]
[1769257588171,96.95558342,127.24,127.21,1.66319409]
[1769257588658,96.95558342,127.24,127.22,1.66319409]
[1769257630593,0.76677839,127.25,127.22,1.66319409]
[1769257639023,2.88404301,127.25,127.22,1.66319409]
[1769257640426,0.76677839,127.25,127.22,1.66319409]
[1769257644636,2.59282525,127.26,127.22,1.66319409]
[1769257651640,2.11726462,127.26,127.22,1.66319409]
[1769257651840,0.45183775,127.25,127.22,1.66319409]
[1769257658853,0.2,127.27,127.22,1.66319409]
[1769257658854,0.42699857,127.26,127.22,1.66319409]
[1769257659148,2.54426319,127.26,127.22,1.66319409]
[1769257664951,2.54402168,127.26,127.22,1.66319409]
[1769257676757,0.42699857,127.26,127.22,1.66319409]
[1769257676955,2.54402168,127.26,127.22,1.66319409]
[1769257683573,0.42699857,127.26,127.22,1.66319409]
[1769257683774,2.54402168,127.26,127.22,1.66319409]
[1769257684077,0.42699857,127.26,127.22,1.66319409]
[1769257684371,0.40696786,127.27,127.22,1.66319409]
[1769257684574,2.52399097,127.27,127.23,1.32211025]
[1769257711195,2.11702311,127.26,127.23,1.32211025]
[1769257726915,2.11700233,127.26,127.23,1.32211025]
[1769257775067,2.31700233,127.27,127.23,1.32211025]
[1769257782675,0.2,127.27,127.23,1.32211025]
[1769257782846,2.31700233,127.27,127.23,1.32211025]
[1769257783968,2.11700233,127.26,127.23,1.32211025]
[1769257786950,2.11683766,127.26,127.23,1.32211025]
[1769257794967,2.31683766,127.27,127.23,1.32211025]
[1769257796683,2.11683766,127.26,127.23,1.32211025]
[1769257817276,2.31683766,127.27,127.23,1.32211025]
[1769257817476,2.31683766,127.27,127.24,1.31194246]
[1769257821016,2.11683766,127.26,127.24,1.31194246]
[1769257828718,0.2,127.27,127.24,1.31194246]
[1769257828894,0.2,127.27,127.25,1.31194246]
[1769257829311,2.31683766,127.27,127.25,1.31194246]
[1769257832519,0.2,127.27,127.25,1.31194246]
[1769257832713,2.31683766,127.27,127.25,1.31194246]
[1769257840820,97.15558342,127.28,127.27,0.98582837]
[1769257858524,0.2,127.28,127.27,0.98582837]
[1769257865150,0.2,127.29,127.26,1.01585358]
[1769257865528,0.2,127.29,127.27,1.01585358]
[1769257868254,0.2,127.29,127.27,6.60734624]
[1769257868751,0.2,127.29,127.28,1.01585358]
[1769257872053,0.2,127.3,127.28,1.01585358]
[1769257872241,0.2,127.3,127.28,6.60734624]
[1769257875632,0.2,127.3,127.29,1.01540096]
[1769257875836,0.2,127.31,127.29,1.01540096]
[1769257876455,1.22662476,127.31,127.29,1.01540096]
[1769257881469,0.2,127.31,127.29,1.01540096]
[1769257882747,1.22662476,127.31,127.29,1.01540096]
[1769257892474,0.2,127.32,127.3,0.99642297]
[1769257892774,0.2,127.32,127.31,0.99642297]
[1769257900582,0.2,127.32,127.3,6.25660346]
[1769257900881,0.2,127.32,127.3,4.14045912]
[1769257903189,0.2,127.32,127.3,0.99642297]
[1769257906281,0.1,127.33,127.3,3.11256731]
[1769257906483,0.1,127.33,127.32,0.99642297]
[1769257909867,0.1,127.35,127.33,0.99642297]
[1769257910071,0.1,127.35,127.33,3.11005654]
[1769257911690,0.1,127.35,127.33,0.99642297]
[1769257917783,0.1,127.36,127.34,0.99642297]
[1769257920193,1.16234618,127.36,127.34,0.99642297]
[1769257926720,0.1,127.36,127.34,0.99642297]
[1769257933337,0.1,127.36,127.34,3.11005654]
[1769257933630,0.1,127.36,127.35,1.08839376]
[1769257937040,97.05558342,127.37,127.35,1.08839376]
[1769257937627,0.1,127.37,127.35,1.08839376]
[1769257940444,0.1,127.38,127.35,1.08839376]
[1769257940650,0.1,127.38,127.36,1.08839376]
[1769257942349,0.1,127.38,127.36,3.20202733]
[1769257943030,0.1,127.38,127.37,1.08839376]
[1769257945442,0.1,127.38,127.37,3.20202733]
[1769257945747,0.2,127.39,127.37,3.20202733]
[1769257946126,0.2,127.4,127.38,3.1190973]
[1769257946327,0.2,127.4,127.39,3.1190973]
[1769257946934,0.2,127.4,127.39,1.00546373]
[1769257947534,1.34427932,127.4,127.37,4.15438053]
[1769257947733,1.34427932,127.4,127.37,14.11914833]
[1769257948660,1.34427932,127.4,127.37,12.00551476]
[1769257949934,0.2,127.4,127.38,1.01902633]
[1769257951561,0.2,127.4,127.39,1.02557279]
[1769257965769,0.2,127.4,127.38,14.17609491]
[1769257967366,0.2,127.4,127.38,12.06246134]
[1769257973975,1.32924973,127.4,127.38,3.14181361]
[1769257974878,1.32924973,127.4,127.36,8.94486309]
[1769257975047,1.32924973,127.4,127.36,14.19868766]
[1769257980878,2.11151734,127.39,127.36,3.14230723]
[1769257981082,1.12924973,127.37,127.33,11.16510435]
[1769257981261,1.12924973,127.36,127.33,9.05358701]
[1769257981458,1.12924973,127.35,127.33,1.20032465]
[1769257981775,1.12924973,127.35,127.32,9.05422964]
[1769257981982,1.12924973,127.35,127.32,12.19727761]
[1769257982185,1.12924973,127.35,127.32,9.05422964]
[1769257983591,1.12924973,127.35,127.32,1.20032465]
[1769257984489,1.12924973,127.35,127.32,9.0543923]
[1769257985487,3.24076707,127.35,127.32,9.0543923]
[1769257990108,1.12924973,127.35,127.32,9.0543923]
[1769257997304,1.20411543,127.38,127.35,1.21026586]
[1769257997475,1.20411543,127.38,127.35,3.3217832]
[1769257997677,1.20411543,127.37,127.35,1.21026586]
[1769257997984,1.20411543,127.37,127.34,3.3217832]
[1769257998310,1.20411543,127.37,127.34,1.21026586]
[1769257999109,1.20411543,127.36,127.33,3.3217832]
[1769257999805,1.20411543,127.35,127.32,1.21026586]
[1769258022531,1.20411543,127.35,127.31,9.18597431]
[1769258022705,2.11151734,127.34,127.3,1.33139094]
[1769258022906,1.23640277,127.33,127.3,1.33139094]
[1769258023222,1.23640277,127.31,127.29,1.33139094]
[1769258030131,1.23640277,127.31,127.29,1.33139094]
[1769258041539,3.35114223,127.31,127.28,1.33139094]
[1769258041719,1.23640277,127.3,127.27,1.33139094]
[1769258042243,1.23640277,127.3,127.27,3.4461304]
[1769258043037,1.23640277,127.3,127.26,9.97245155]
[1769258043620,1.23640277,127.3,127.27,1.36209583]
[1769258062648,3.35114223,127.3,127.27,1.36209583]
[1769258067457,3.54582719,127.29,127.26,1.39947699]
[1769258067660,3.54582719,127.28,127.25,1.39947699]
[1769258070160,1.43108773,127.27,127.25,1.39947699]
[1769258070463,3.54582719,127.27,127.24,1.39947699]
[1769258071161,1.43108773,127.27,127.24,1.39947699]
[1769258071859,3.54582719,127.27,127.24,1.39947699]
[1769258074164,1.35663891,127.26,127.23,18.76579931]
[1769258074663,3.47137837,127.26,127.23,18.76579931]
[1769258081469,3.47137837,127.26,127.23,1.54579931]
[1769258092876,3.47366088,127.26,127.23,1.54579931]
[1769258112681,1.35663891,127.26,127.23,1.54579931]
[1769258112887,3.47366088,127.26,127.23,1.54579931]
[1769258124506,1e-08,127.24,127.23,0.2]
[1769258124792,2.11702197,127.24,127.22,0.2]
[1769258130519,0.57742055,127.23,127.22,0.2]
[1769258130677,2.69444252,127.23,127.21,0.2]
[1769258131200,2.6944427,127.23,127.21,0.2]
[1769258131400,2.6944427,127.23,127.21,1.61843463]
[1769258131587,4.81146467,127.23,127.21,1.61843463]
[1769258133110,4.23404412,127.23,127.21,1.61843463]
[1769258133400,2.11702215,127.23,127.21,1.61843463]
[1769258135409,4.23404412,127.23,127.21,1.61843463]
[1769258140712,4.09437493,127.23,127.21,1.61843463]
[1769258146211,2.11702197,127.23,127.21,1.61843463]
[1769258147519,2.5071173,127.24,127.21,1.61843463]
[1769258148299,1.97735296,127.22,127.21,1.61843463]
[1769258158211,2.17611161,127.22,127.2,0.2]
[1769258158416,4.29398114,127.22,127.2,0.2]
[1769258162129,4.29398114,127.22,127.2,1.67575964]
[1769258162429,2.17611161,127.22,127.2,1.67575964]
[1769258163106,0.48027013,127.22,127.2,1.67575964]
[1769258165232,1.69584148,127.21,127.2,1.67575964]
[1769258180210,2.11786953,127.22,127.2,1.67575964]
[1769258181841,2.47841977,127.22,127.2,0.2]
[1769258182222,1.69584148,127.21,127.2,0.2]
[1769258189128,1.69584148,127.21,127.2,1.73484111]
[1769258189847,1.58963973,127.21,127.2,1.73484111]
[1769258197362,0.37832588,127.23,127.2,1.73484111]
[1769258199355,1.58963973,127.22,127.2,1.73484111]
[1769258202062,1.58963973,127.22,127.21,1.59625753]
[1769258202763,1.58963973,127.22,127.21,3.71412706]
[1769258204846,1.58963973,127.22,127.21,1.59625753]
[1769258205551,1.58963973,127.22,127.21,3.71412706]
[1769258213095,0.40978267,127.24,127.21,3.71338808]
[1769258220602,99.51776378,127.26,127.23,1.59625753]
[1769258221092,0.44504981,127.25,127.22,3.71338808]
[1769258223402,97.40550504,127.26,127.23,1.61596195]
[1769258227407,99.52263559,127.26,127.23,1.61596195]
[1769258228596,0.459192,127.24,127.21,1.61596195]
[1769258229501,2.57781065,127.25,127.21,1.61596195]
[1769258231603,0.4606801,127.25,127.21,3.7330925]
[1769258232904,0.4606801,127.25,127.22,1.65937029]
[1769258240643,0.47725341,127.24,127.2,1.85937029]
[1769258240796,0.47725341,127.23,127.2,1.85937029]
[1769258254535,0.29544595,127.2,127.19,0.2]
[1769258254708,2.4125765,127.21,127.17,1.66914902]
[1769258254902,0.29544595,127.21,127.18,1.66914902]
[1769258255111,3.44294565,127.22,127.2,1.66914902]
[1769258255329,3.44294565,127.22,127.19,1.66914902]
[1769258255330,0.29544595,127.22,127.19,1.66914902]
[1769258269447,2.4125765,127.22,127.19,1.66914902]
[1769258274350,0.29544595,127.22,127.19,1.66914902]
[1769258281344,2.11837406,127.24,127.19,1.66914902]
[1769258281546,2.44962867,127.26,127.22,1.66914902]
[1769258282458,2.95073803,127.25,127.22,1.66914902]
[1769258286367,0.5,127.25,127.22,1.66914902]
[1769258288458,2.45505159,127.26,127.22,1.66914902]
[1769258288661,2.11837406,127.26,127.23,1.64192244]
[1769258289345,2.45814276,127.26,127.23,1.64192244]
[1769258292534,0.3397687,127.26,127.23,1.64192244]
[1769258293244,2.46309462,127.27,127.23,1.64192244]
[1769258296244,2.11837406,127.27,127.23,2.11837406]
[1769258296469,2.11837406,127.27,127.24,1.68086489]
[1769258296855,2.46685499,127.27,127.24,1.68086489]
[1769258300786,0.34848093,127.27,127.24,1.68086489]
[1769258303469,99.42774496,127.28,127.24,1.68086489]
[1769258304587,96.95558342,127.28,127.25,1.68086489]
[1769258304971,97.31105616,127.28,127.25,1.68086489]
[1769258307786,99.42943022,127.28,127.25,1.68086489]
[1769258311591,0.36036073,127.31,127.27,1.68086489]
[1769258311915,2.47873479,127.31,127.27,1.68086489]
[1769258312278,2.11837406,127.3,127.27,1.68086489]
[1769258314106,0.36340615,127.32,127.28,1.68201552]
[1769258314290,2.48178021,127.33,127.29,1.68201552]
[1769258315397,2.11837406,127.32,127.29,1.68201552]